[Event "7° Rencontres Internationales des Echecs Francophones"]
[Site "PARIS, France"]
[Date "2019.08.10"]
[Round "3.1"]
[White "Moussard, Jules"]
[Black "Karagyozian, Edgar"]
[Result "1-0"]
[TimeControl "90'+30' + 30seconds/move"]
[WhiteElo "2613"]
[BlackElo "2229"]

1. Nf3 {[%clk 00:05:05]} d5 {[%clk 00:05:04]} {[%emt 00:00:02]} 2. b3 {[%clk
00:05:06]} {[%emt 00:00:02]} Nf6 {[%clk 00:05:05]} {[%emt 00:00:01]} 3. Bb2
{[%clk 00:05:08]} c6 {[%clk 00:05:06]} {[%emt 00:00:02]} 4. g3 {[%clk
00:05:09]} {[%emt 00:00:04]} Bg4 {[%clk 00:05:06]} {[%emt 00:00:02]} 5. Bg2
{[%clk 00:05:11]} {[%emt 00:00:01]} Nbd7 {[%clk 00:05:07]} {[%emt 00:00:03]} 6.
O-O {[%clk 00:05:11]} {[%emt 00:00:02]} e6 {[%clk 00:05:04]} {[%emt 00:00:06]}
7. c4 {[%clk 00:05:12]} {[%emt 00:00:02]} Bd6 {[%clk 00:05:00]} {[%emt
00:00:08]} 8. d3 {[%clk 00:05:12]} {[%emt 00:00:02]} O-O {[%clk 00:04:59]}
{[%emt 00:00:04]} 9. Nbd2 {[%clk 00:05:14]} {[%emt 00:00:02]} Qe7 {[%clk
00:04:58]} {[%emt 00:00:03]} 10. a3 {[%clk 00:05:15]} {[%emt 00:00:02]} Rfd8
{[%clk 00:04:57]} {[%emt 00:00:05]} 11. Qc2 {[%clk 00:05:17]} Rac8 {[%clk
00:04:49]} {[%emt 00:00:12]} 12. Rfe1 {[%clk 00:05:05]} {[%emt 00:00:14]} e5
{[%clk 00:04:40]} {[%emt 00:00:12]} 13. e4 {[%clk 00:04:58]} {[%emt 00:00:10]}
dxe4 {[%clk 00:04:34]} {[%emt 00:00:09]} 14. dxe4 {[%clk 00:05:00]} Nf8 {[%clk
00:04:22]} {[%emt 00:00:17]} 15. h3 {[%clk 00:04:55]} {[%emt 00:00:08]} Bxf3
{[%clk 00:04:15]} {[%emt 00:00:10]} 16. Nxf3 {[%clk 00:04:57]} {[%emt
00:00:01]} Ng6 {[%clk 00:03:19]} {[%emt 00:00:58]} 17. h4 {[%clk 00:04:49]}
{[%emt 00:00:12]} Nf8 {[%clk 00:02:05]} {[%emt 00:01:17]} 18. Bh3 {[%clk
00:04:46]} {[%emt 00:00:05]} Rb8 {[%clk 00:02:04]} {[%emt 00:00:03]} 19. Rad1
{[%clk 00:04:46]} {[%emt 00:00:04]} N8d7 {[%clk 00:01:43]} {[%emt 00:00:24]} 20.
b4 {[%clk 00:04:45]} {[%emt 00:00:04]} Bc7 {[%clk 00:01:39]} {[%emt 00:00:07]}
21. c5 {[%clk 00:04:46]} {[%emt 00:00:02]} a5 {[%clk 00:01:25]} {[%emt
00:00:18]} 22. Qc4 {[%clk 00:04:35]} {[%emt 00:00:13]} axb4 {[%clk 00:01:22]}
{[%emt 00:00:06]} 23. axb4 {[%clk 00:04:37]} Nf8 {[%clk 00:01:18]} {[%emt
00:00:07]} 24. Kg2 {[%clk 00:04:35]} {[%emt 00:00:05]} Ng6 {[%clk 00:01:04]}
{[%emt 00:00:17]} 25. Ng5 {[%clk 00:04:31]} {[%emt 00:00:07]} Kf8 {[%clk
00:00:39]} {[%emt 00:00:28]} 26. Bf5 {[%clk 00:04:26]} {[%emt 00:00:09]} h6
{[%clk 00:00:21]} {[%emt 00:00:21]} 27. Ne6+ {[%clk 00:04:28]} fxe6 {[%clk
00:00:20]} {[%emt 00:00:03]} 28. Bxg6 {[%clk 00:04:30]} Rxd1 {[%clk 00:00:18]}
{[%emt 00:00:06]} 29. Rxd1 {[%clk 00:04:32]} Kg8 {[%clk 00:00:12]} {[%emt
00:00:09]} 30. b5 {[%clk 00:04:08]} {[%emt 00:00:27]} Rf8 {[%clk 00:00:14]} 31.
bxc6 {[%clk 00:04:03]} {[%emt 00:00:07]} bxc6 {[%clk 00:00:15]} {[%emt
00:00:02]} 32. Rd2 {[%clk 00:03:59]} {[%emt 00:00:07]} Ng4 {[%clk 00:00:16]}
{[%emt 00:00:03]} 33. Bf5 {[%clk 00:04:00]} {[%emt 00:00:01]} Nf6 {[%clk
00:00:07]} {[%emt 00:00:12]} 34. Qxe6+ {[%clk 00:04:00]} {[%emt 00:00:04]} Qxe6
{[%clk 00:00:09]} 35. Bxe6+ {[%clk 00:03:59]} {[%emt 00:00:03]} Kh7 {[%clk
00:00:09]} {[%emt 00:00:04]} 36. f3 {[%clk 00:03:53]} {[%emt 00:00:09]} Rb8
{[%clk 00:00:11]} {[%emt 00:00:01]} 37. g4 {[%clk 00:03:39]} {[%emt 00:00:17]}
Rb5 {[%clk 00:00:13]} {[%emt 00:00:02]} 38. Ba3 {[%clk 00:03:41]} Ra5 {[%clk
00:00:15]} {[%emt 00:00:02]} 39. Rd3 {[%clk 00:03:43]} Ra4 {[%clk 00:00:12]}
{[%emt 00:00:05]} 40. h5 {[%clk 00:03:44]} {[%emt 00:00:03]} Ra5 {[%clk
00:00:11]} {[%emt 00:00:05]} 41. Rb3 {[%clk 00:03:43]} {[%emt 00:00:05]} Ra7
{[%clk 00:00:11]} {[%emt 00:00:03]} 42. Bf7 {[%clk 00:03:39]} {[%emt 00:00:06]}
Nd7 {[%clk 00:00:09]} {[%emt 00:00:06]} 43. Be8 {[%clk 00:03:40]} Bd8 {[%clk
00:00:05]} {[%emt 00:00:07]} 44. Rd3 {[%clk 00:03:41]} {[%emt 00:00:02]} Nf6
{[%clk 00:00:06]} {[%emt 00:00:02]} 45. Bg6+ {[%clk 00:03:43]} {[%emt
00:00:02]} Ng8 {[%emt 00:00:05]} 1-0

[Event "7° Rencontres Internationales des Echecs Francophones"]
[Site "PARIS, France"]
[Date "2019.08.10"]
[Round "3.4"]
[White "Hamdouchi, Hicham"]
[Black "Dardha, Arben"]
[Result "1-0"]
[TimeControl "90'+30' + 30seconds/move"]
[WhiteElo "2514"]
[BlackElo "2222"]

1. e4 {[%clk 00:05:03]} {[%emt 00:00:53]} c5 {[%clk 00:05:03]} {[%emt
00:00:02]} 2. Nc3 {[%clk 00:05:03]} {[%emt 00:00:02]} e6 {[%clk 00:04:55]}
{[%emt 00:00:14]} 3. Nf3 {[%clk 00:05:02]} {[%emt 00:00:04]} Nc6 {[%clk
00:04:50]} {[%emt 00:00:08]} 4. d4 {[%clk 00:05:04]} {[%emt 00:00:02]} cxd4
{[%clk 00:04:51]} {[%emt 00:00:02]} 5. Nxd4 {[%clk 00:05:05]} Nf6 {[%clk
00:04:45]} {[%emt 00:00:10]} 6. a3 {[%clk 00:05:04]} {[%emt 00:00:05]} Be7
{[%clk 00:04:02]} {[%emt 00:00:45]} 7. Nxc6 {[%clk 00:04:48]} {[%emt 00:00:20]}
dxc6 {[%clk 00:03:48]} {[%emt 00:00:16]} 8. Qxd8+ {[%clk 00:04:42]} {[%emt
00:00:08]} Bxd8 {[%clk 00:03:24]} {[%emt 00:00:28]} 9. e5 {[%clk 00:04:42]}
{[%emt 00:00:02]} Nd5 {[%clk 00:03:25]} {[%emt 00:00:03]} 10. Ne4 {[%clk
00:04:43]} {[%emt 00:00:02]} O-O {[%clk 00:03:08]} {[%emt 00:00:19]} 11. c4
{[%clk 00:04:28]} {[%emt 00:00:18]} Nb6 {[%clk 00:02:37]} {[%emt 00:00:35]} 12.
Be3 {[%clk 00:04:07]} {[%emt 00:00:23]} Bc7 {[%clk 00:02:25]} {[%emt 00:00:15]}
13. f4 {[%clk 00:04:09]} {[%emt 00:00:02]} Bd7 {[%clk 00:01:55]} {[%emt
00:00:33]} 14. O-O-O {[%clk 00:04:07]} {[%emt 00:00:05]} Rfd8 {[%clk 00:01:51]}
{[%emt 00:00:07]} 15. Nc5 {[%clk 00:03:41]} {[%emt 00:00:28]} Bc8 {[%clk
00:01:23]} {[%emt 00:00:31]} 16. Rxd8+ {[%clk 00:03:21]} {[%emt 00:00:24]} Bxd8
{[%clk 00:01:25]} 17. Be2 {[%clk 00:03:22]} {[%emt 00:00:01]} Be7 {[%clk
00:01:16]} {[%emt 00:00:13]} 18. Rd1 {[%clk 00:03:15]} {[%emt 00:00:10]} Kf8
{[%clk 00:01:05]} {[%emt 00:00:14]} 19. Ne4 {[%clk 00:03:03]} {[%emt 00:00:15]}
Nd7 {[%clk 00:00:54]} {[%emt 00:00:14]} 20. h4 {[%clk 00:02:45]} {[%emt
00:00:21]} b6 {[%clk 00:00:49]} {[%emt 00:00:08]} 21. Bf3 {[%clk 00:02:39]}
{[%emt 00:00:09]} Ke8 {[%clk 00:00:29]} {[%emt 00:00:22]} 22. Ng5 {[%clk
00:02:08]} {[%emt 00:00:35]} Bb7 {[%clk 00:00:20]} {[%emt 00:00:12]} 23. Nxf7
{[%clk 00:01:51]} {[%emt 00:00:19]} Nc5 {[%clk 00:00:08]} {[%emt 00:00:16]} 24.
Nd6+ {[%clk 00:01:38]} {[%emt 00:00:16]} Bxd6 {[%clk 00:00:10]} {[%emt
00:00:02]} 25. Rxd6 {[%clk 00:01:39]} {[%emt 00:00:01]} Rd8 {[%clk 00:00:04]}
{[%emt 00:00:09]} 26. Bxc5 {[%clk 00:00:20]} {[%emt 00:01:22]} bxc5 {[%clk
00:00:06]} {[%emt 00:00:01]} 27. Bxc6+ {[%clk 00:00:11]} {[%emt 00:00:12]} Bxc6
{[%clk 00:00:07]} {[%emt 00:00:02]} 28. Rxc6 {[%clk 00:00:13]} Rd3 {[%clk
00:00:09]} {[%emt 00:00:01]} 29. Rxe6+ {[%clk 00:00:11]} {[%emt 00:00:05]} Kf7
{[%clk 00:00:09]} {[%emt 00:00:04]} 30. Ra6 {[%clk 00:00:12]} {[%emt 00:00:01]}
Rg3 {[%clk 00:00:09]} {[%emt 00:00:03]} 31. f5 {[%clk 00:00:14]} {[%emt
00:00:01]} Rxg2 {[%clk 00:00:05]} {[%emt 00:00:07]} 32. Rxa7+ {[%clk 00:00:16]}
{[%emt 00:00:02]} Ke8 {[%clk 00:00:06]} {[%emt 00:00:01]} 33. f6 {[%clk
00:00:16]} {[%emt 00:00:03]} gxf6 {[%clk 00:00:08]} {[%emt 00:00:01]} 34. exf6
{[%clk 00:00:18]} Rf2 {[%clk 00:00:09]} {[%emt 00:00:02]} 35. Rxh7 {[%clk
00:00:18]} {[%emt 00:00:03]} Rxf6 {[%clk 00:00:11]} 36. Kc2 {[%clk 00:00:20]}
{[%emt 00:00:01]} Rf3 {[%clk 00:00:11]} {[%emt 00:00:03]} 37. h5 {[%clk
00:00:20]} {[%emt 00:00:03]} Rf2+ {[%clk 00:00:12]} {[%emt 00:00:02]} 38. Kb3
{[%clk 00:00:21]} {[%emt 00:00:02]} Kd8 {[%clk 00:00:06]} {[%emt 00:00:09]} 39.
h6 {[%clk 00:00:22]} {[%emt 00:00:02]} Kc8 {[%clk 00:00:07]} {[%emt 00:00:01]}
40. Rg7 {[%clk 00:00:23]} {[%emt 00:00:02]} Rh2 {[%clk 00:00:05]} {[%emt
00:00:05]} 41. h7 {[%clk 00:00:24]} {[%emt 00:00:02]} 1-0

[Event "7° Rencontres Internationales des Echecs Francophones"]
[Site "PARIS, France"]
[Date "2019.08.10"]
[Round "3.5"]
[White "Mouhamad, Joachin"]
[Black "Sebag, Marie"]
[Result "0-1"]
[TimeControl "90'+30' + 30seconds/move"]
[WhiteElo "2227"]
[BlackElo "2494"]

1. e4 {[%clk 00:05:04]} {[%emt 00:00:01]} c5 {[%clk 00:05:04]} {[%emt
00:00:02]} 2. Nf3 {[%clk 00:05:05]} {[%emt 00:00:02]} d6 {[%clk 00:05:06]}
{[%emt 00:00:01]} 3. d4 {[%clk 00:05:07]} {[%emt 00:00:02]} cxd4 {[%clk
00:05:08]} 4. Nxd4 {[%clk 00:05:08]} {[%emt 00:00:02]} Nf6 {[%clk 00:05:09]}
{[%emt 00:00:01]} 5. Nc3 {[%clk 00:05:10]} a6 {[%clk 00:05:11]} {[%emt
00:00:01]} 6. f3 {[%clk 00:05:12]} {[%emt 00:00:01]} e5 {[%clk 00:05:08]}
{[%emt 00:00:07]} 7. Nb3 {[%clk 00:05:13]} Be6 {[%clk 00:05:08]} {[%emt
00:00:03]} 8. Be3 {[%clk 00:05:14]} {[%emt 00:00:02]} Be7 {[%clk 00:05:01]}
{[%emt 00:00:11]} 9. Qd2 {[%clk 00:05:16]} {[%emt 00:00:02]} O-O {[%clk
00:05:00]} {[%emt 00:00:03]} 10. O-O-O {[%clk 00:05:17]} {[%emt 00:00:02]} a5
{[%clk 00:05:02]} {[%emt 00:00:02]} 11. a4 {[%clk 00:04:59]} {[%emt 00:00:20]}
Na6 {[%clk 00:04:57]} {[%emt 00:00:08]} 12. Bb5 {[%clk 00:04:57]} {[%emt
00:00:05]} Nc7 {[%clk 00:04:29]} {[%emt 00:00:32]} 13. Bb6 {[%clk 00:04:40]}
{[%emt 00:00:20]} Qb8 {[%clk 00:04:30]} {[%emt 00:00:02]} 14. Kb1 {[%clk
00:03:49]} {[%emt 00:00:53]} d5 {[%clk 00:03:48]} {[%emt 00:00:44]} 15. Bxc7
{[%clk 00:03:30]} {[%emt 00:00:23]} Qxc7 {[%clk 00:03:50]} {[%emt 00:00:02]} 16.
Nxd5 {[%clk 00:03:13]} {[%emt 00:00:20]} Nxd5 {[%clk 00:03:21]} {[%emt
00:00:31]} 17. exd5 {[%clk 00:03:13]} {[%emt 00:00:03]} Rfd8 {[%clk 00:03:20]}
{[%emt 00:00:04]} 18. c4 {[%clk 00:02:48]} {[%emt 00:00:28]} Bf5+ {[%clk
00:03:21]} {[%emt 00:00:02]} 19. Ka2 {[%clk 00:02:50]} {[%emt 00:00:01]} Bb4
{[%clk 00:03:04]} {[%emt 00:00:21]} 20. Qe3 {[%clk 00:02:50]} {[%emt 00:00:03]}
Bd7 {[%clk 00:02:30]} {[%emt 00:00:37]} 21. Rc1 {[%clk 00:02:03]} {[%emt
00:00:49]} Bxb5 {[%clk 00:01:56]} {[%emt 00:00:37]} 22. cxb5 {[%clk 00:02:04]}
{[%emt 00:00:02]} Qd6 {[%clk 00:01:53]} {[%emt 00:00:07]} 23. Rhd1 {[%clk
00:02:00]} {[%emt 00:00:07]} h6 {[%clk 00:01:54]} {[%emt 00:00:02]} 24. Qe4
{[%clk 00:01:38]} {[%emt 00:00:25]} Rac8 {[%clk 00:01:44]} {[%emt 00:00:13]} 25.
Rxc8 {[%clk 00:01:37]} {[%emt 00:00:04]} Rxc8 {[%clk 00:01:46]} {[%emt
00:00:01]} 26. Rc1 {[%clk 00:01:38]} {[%emt 00:00:03]} Rd8 {[%clk 00:01:41]}
{[%emt 00:00:08]} 27. Rd1 {[%clk 00:01:29]} {[%emt 00:00:11]} Rc8 {[%clk
00:01:43]} {[%emt 00:00:02]} 28. Rc1 {[%clk 00:01:21]} {[%emt 00:00:11]} Rd8
{[%clk 00:01:27]} {[%emt 00:00:18]} 29. Rd1 {[%clk 00:01:23]} Rc8 {[%clk
00:01:19]} {[%emt 00:00:12]} 30. Qf5 {[%clk 00:01:16]} {[%emt 00:00:10]} Rc4
{[%clk 00:01:02]} {[%emt 00:00:16]} 31. Qd3 {[%clk 00:01:08]} {[%emt 00:00:15]}
Rc8 {[%clk 00:00:59]} {[%emt 00:00:07]} 32. Qe2 {[%clk 00:00:55]} {[%emt
00:00:16]} g6 {[%clk 00:00:50]} {[%emt 00:00:11]} 33. h4 {[%clk 00:00:50]}
{[%emt 00:00:07]} Kg7 {[%clk 00:00:52]} {[%emt 00:00:02]} 34. h5 {[%clk
00:00:51]} {[%emt 00:00:03]} g5 {[%clk 00:00:40]} {[%emt 00:00:15]} 35. Qe4
{[%clk 00:00:44]} {[%emt 00:00:10]} Rd8 {[%clk 00:00:30]} {[%emt 00:00:13]} 36.
Qc4 {[%clk 00:00:35]} {[%emt 00:00:11]} Rd7 {[%clk 00:00:28]} {[%emt 00:00:05]}
37. Qe4 {[%clk 00:00:29]} {[%emt 00:00:08]} Rc7 {[%clk 00:00:29]} {[%emt
00:00:02]} 38. g4 {[%clk 00:00:23]} {[%emt 00:00:09]} Rc8 {[%clk 00:00:31]}
{[%emt 00:00:01]} 39. Qf5 {[%clk 00:00:23]} {[%emt 00:00:03]} Rc7 {[%clk
00:00:33]} 40. Qd3 {[%clk 00:00:23]} {[%emt 00:00:02]} Rc8 {[%clk 00:00:35]} 41.
Qe4 {[%clk 00:00:23]} {[%emt 00:00:03]} Rc7 {[%clk 00:00:37]} {[%emt 00:00:01]}
42. Qf5 {[%clk 00:00:21]} {[%emt 00:00:05]} Rc4 {[%clk 00:00:37]} {[%emt
00:00:03]} 43. Qd3 {[%clk 00:00:15]} {[%emt 00:00:09]} Rf4 {[%clk 00:00:39]} 44.
Nd2 {[%clk 00:00:13]} {[%emt 00:00:05]} Rd4 {[%clk 00:00:40]} {[%emt 00:00:02]}
45. Qc2 {[%clk 00:00:04]} {[%emt 00:00:13]} Qxd5+ {[%clk 00:00:42]} 46. Kb1
{[%emt 00:00:04]} Rxd2 {[%clk 00:00:43]} 0-1

[Event "7° Rencontres Internationales des Echecs Francophones"]
[Site "PARIS, France"]
[Date "2019.08.10"]
[Round "3.8"]
[White "Chabanon, Jean-Luc"]
[Black "Saglier, Paul"]
[Result "1-0"]
[TimeControl "90'+30' + 30seconds/move"]
[WhiteElo "2448"]
[BlackElo "2194"]

1. d4 {[%clk 00:05:05]} Nf6 {[%clk 00:05:05]} {[%emt 00:00:01]} 2. c4 {[%clk
00:05:08]} {[%emt 00:00:01]} g6 {[%clk 00:05:07]} 3. Nc3 {[%clk 00:05:08]}
{[%emt 00:00:03]} Bg7 {[%clk 00:05:09]} 4. e4 {[%clk 00:05:10]} d6 {[%clk
00:05:11]} {[%emt 00:00:02]} 5. Be2 {[%clk 00:05:12]} {[%emt 00:00:02]} O-O
{[%clk 00:05:12]} {[%emt 00:00:02]} 6. Nf3 {[%clk 00:05:00]} {[%emt 00:00:14]}
Bg4 {[%clk 00:05:12]} {[%emt 00:00:03]} 7. Be3 {[%clk 00:04:51]} {[%emt
00:00:11]} Nfd7 {[%clk 00:05:13]} {[%emt 00:00:02]} 8. Ng1 {[%clk 00:04:50]}
{[%emt 00:00:04]} Bxe2 {[%clk 00:05:09]} {[%emt 00:00:08]} 9. Ngxe2 {[%clk
00:04:52]} {[%emt 00:00:01]} e5 {[%clk 00:04:54]} {[%emt 00:00:17]} 10. d5
{[%clk 00:04:33]} {[%emt 00:00:22]} f5 {[%clk 00:04:48]} {[%emt 00:00:09]} 11.
f3 {[%clk 00:04:11]} {[%emt 00:00:24]} Bh6 {[%clk 00:04:45]} {[%emt 00:00:06]}
12. Bf2 {[%clk 00:04:07]} {[%emt 00:00:07]} Nf6 {[%clk 00:04:36]} {[%emt
00:00:12]} 13. Ng3 {[%clk 00:03:29]} {[%emt 00:00:41]} Ne8 {[%clk 00:03:33]}
{[%emt 00:01:06]} 14. b4 {[%clk 00:03:18]} {[%emt 00:00:14]} a5 {[%clk
00:03:34]} {[%emt 00:00:02]} 15. a3 {[%clk 00:03:18]} {[%emt 00:00:04]} Nd7
{[%clk 00:03:20]} {[%emt 00:00:16]} 16. O-O {[%clk 00:03:00]} {[%emt 00:00:21]}
Bf4 {[%clk 00:02:58]} {[%emt 00:00:26]} 17. Qc2 {[%clk 00:02:44]} {[%emt
00:00:19]} Ng7 {[%clk 00:02:57]} {[%emt 00:00:03]} 18. c5 {[%clk 00:02:35]}
{[%emt 00:00:13]} Nf6 {[%clk 00:02:32]} {[%emt 00:00:27]} 19. exf5 {[%clk
00:02:13]} {[%emt 00:00:26]} Bxg3 {[%clk 00:02:32]} {[%emt 00:00:03]} 20. hxg3
{[%clk 00:02:14]} {[%emt 00:00:02]} Nxf5 {[%clk 00:02:25]} {[%emt 00:00:10]} 21.
Rad1 {[%clk 00:02:10]} {[%emt 00:00:06]} Qe7 {[%clk 00:02:21]} {[%emt
00:00:08]} 22. g4 {[%clk 00:02:05]} {[%emt 00:00:08]} Nd4 {[%clk 00:02:10]}
{[%emt 00:00:14]} 23. cxd6 {[%clk 00:01:11]} {[%emt 00:00:56]} cxd6 {[%clk
00:01:42]} {[%emt 00:00:31]} 24. Qd2 {[%clk 00:00:52]} {[%emt 00:00:22]} axb4
{[%clk 00:01:18]} {[%emt 00:00:27]} 25. axb4 {[%clk 00:00:54]} Nb3 {[%clk
00:00:50]} {[%emt 00:00:32]} 26. Qb2 {[%clk 00:00:56]} Nd4 {[%clk 00:00:50]}
{[%emt 00:00:03]} 27. Rfe1 {[%clk 00:00:58]} {[%emt 00:00:01]} Qc7 {[%clk
00:00:38]} {[%emt 00:00:15]} 28. Bxd4 {[%clk 00:00:46]} {[%emt 00:00:15]} exd4
{[%clk 00:00:40]} 29. Rxd4 {[%clk 00:00:42]} {[%emt 00:00:07]} Qb6 {[%clk
00:00:35]} {[%emt 00:00:08]} 30. Red1 {[%clk 00:00:34]} {[%emt 00:00:11]} Rfe8
{[%clk 00:00:37]} 31. Qf2 {[%clk 00:00:30]} {[%emt 00:00:06]} Ra3 {[%clk
00:00:35]} {[%emt 00:00:05]} 32. Ne4 {[%clk 00:00:23]} {[%emt 00:00:11]} Nxe4
{[%clk 00:00:34]} {[%emt 00:00:04]} 33. Rxe4 {[%clk 00:00:17]} {[%emt
00:00:09]} Qxf2+ {[%clk 00:00:36]} {[%emt 00:00:01]} 34. Kxf2 {[%clk 00:00:19]}
{[%emt 00:00:01]} Rxe4 {[%clk 00:00:37]} {[%emt 00:00:02]} 35. fxe4 {[%clk
00:00:21]} Kf8 {[%clk 00:00:12]} {[%emt 00:00:28]} 36. Rc1 {[%clk 00:00:22]}
{[%emt 00:00:02]} Rb3 {[%clk 00:00:08]} {[%emt 00:00:08]} 37. Rc8+ {[%clk
00:00:24]} Kg7 {[%clk 00:00:10]} 38. Rc7+ {[%clk 00:00:25]} {[%emt 00:00:02]}
Kh6 {[%clk 00:00:12]} 39. Rxb7 {[%clk 00:00:23]} {[%emt 00:00:05]} Rd3 {[%clk
00:00:10]} {[%emt 00:00:04]} 40. Ke2 {[%clk 00:00:24]} {[%emt 00:00:03]} Rg3
{[%clk 00:00:12]} 41. e5 {[%clk 00:00:25]} {[%emt 00:00:02]} dxe5 {[%clk
00:00:11]} {[%emt 00:00:05]} 42. d6 {[%clk 00:00:25]} {[%emt 00:00:03]} Rxg4
{[%clk 00:00:12]} {[%emt 00:00:02]} 43. d7 {[%clk 00:00:25]} {[%emt 00:00:02]}
Rd4 {[%clk 00:00:14]} 44. Rc7 {[%clk 00:00:27]} {[%emt 00:00:02]} Kg5 {[%emt
00:00:02]} 45. b5 {[%emt 00:00:01]} Kf6 {[%clk 00:00:16]} 46. b6 {[%clk
00:00:32]} Ke7 {[%clk 00:00:14]} {[%emt 00:00:05]} 47. b7 {[%clk 00:00:34]}
{[%emt 00:00:01]} Rb4 {[%clk 00:00:12]} {[%emt 00:00:05]} 48. Rc8 {[%emt
00:00:11]} 1-0